[Event "Reykjavik Open 2025"]
[Site "Reykjavik"]
[Date "2025.04.09"]
[Round "1.1"]
[White "Maghsoodloo, Parham"]
[Black "Tscheuschner, Georg"]
[Result "1-0"]
[Annotator "TA"]
[ECO "E46"]
[WhiteElo "2684"]
[BlackElo "2168"]
[PlyCount "69"]
[EventDate "2025.04.09"]
[EventType "swiss"]
[EventCountry "ISL"]
[SourceTitle "playchess.com"]
[Source "ChessBase"]
[SourceQuality "1"]
[TimeControl "40/5400+30:1800+30"]

{[%evp 9,69,0,-4,-4,-6,2,4,8,11,9,12,0,0,-9,44,46,45,48,64,27,76,62,70,73,76,63,93,47,147,148,157,156,175,184,175,166,170,169,169,164,254,266,272,267,249,255,252,258,351,354,397,407,397,385,456,374,495,486,29994,29987,29996,29997]} 1. d4 {[%emt 0:00:03]} Nf6 {[%emt 0:00:08]} 2. c4 {[%emt 0:00:07]} e6 {[%emt 0:00:05]} 3. Nc3 {[%emt 0:00:08]} Bb4 {[%emt 0:00:12]} 4. e3 {[%emt 0:00:11]} O-O {[%emt 0:00:17]} 5. Nge2 {[%emt 0:00:12][%cal Bg1e2,Be2g3,Bg3h1,Bh1f2,Bf2d3][%mdl 32]} c6 {[%emt 0:00:18]} 6. a3 {[%emt 0:00:08] E46: Nimzo-Indian: Rubinstein: 4 e3 0-0 5 Ne2 without early Bd3.} Ba5 {[%emt 0:00:05]} 7. Bd2 {[%emt 0:01:03]} d5 {[%emt 0:00:17]} 8. Ng3 {[%emt 0:00:11] The position is equal.} Nbd7 {[%emt 0:00:29] 8...Bc7 is vanishing.} 9. f4 $5 {[%emt 0:01:25][%mdl 4] Leaves trodden paths.} Bc7 {[%emt 0:06:06]} 10. Rc1 {[%emt 0:00:35]} dxc4 $146 {[%emt 0:13:18]} (10... Re8 11. c5 b6 12. b4 bxc5 13. bxc5 a5 14. Be2 Ba6 15. O-O Bxe2 16. Qxe2 Qb8 17. Rb1 Qa7 18. a4 Reb8 19. Qd3 Rxb1 20. Rxb1 Rb8 21. Nge2 {½-½ Kuhn,C (2258)-Fischer,D (2404) Menton op 19th 2022 (9)}) 11. Bxc4 {[%emt 0:01:29]} Nd5 {[%emt 0:01:02]} ({Better is} 11... c5 $11) 12. O-O {[%emt 0:03:21]} f5 {[%emt 0:00:33]} 13. Nh1 {[%emt 0:16:04]} b5 {[%emt 0:10:02]} 14. Ba2 {[%emt 0:00:45]} Rf6 {[%emt 0:05:59]} (14... N7f6 $11 {deserves consideration.}) 15. Rf3 {[%emt 0:04:29]} N7b6 {[%emt 0:04:00]} 16. Nf2 {[%emt 0:04:04]} Nc4 {[%emt 0:05:27]} 17. Nd3 {[%emt 0:02:16]} Bb6 {[%emt 0:04:54] Black is on the road to losing.} 18. Ne2 {[%emt 0:05:51]} (18. Bxc4 $16 bxc4 19. Nc5 Bxc5 20. dxc5) 18... Bd7 {[%emt 0:16:44]} (18... Bb7 $14) 19. Bxc4 $16 {[%emt 0:07:39]} bxc4 {[%emt 0:00:06]} 20. Rxc4 {[%emt 0:00:02]} c5 {[%emt 0:04:43]} 21. dxc5 {[%emt 0:01:07]} Bb5 {[%emt 0:00:24]} 22. Rd4 {[%emt 0:02:43]} Bxd3 {[%emt 0:00:21]} 23. Rxd3 {[%emt 0:00:05]} (23. cxb6 Bxe2 24. Qxe2 Qe7) 23... Bxc5 {[%emt 0:00:17]} 24. Nc3 {[%emt 0:00:12]} Qb6 {[%emt 0:12:34]} (24... Rf7 {keeps fighting.}) 25. Rxd5 $18 {[%emt 0:06:56]} exd5 {[%emt 0:00:06]} 26. Nxd5 {[%emt 0:00:04]} Qd6 {[%emt 0:03:16]} 27. Nxf6+ {[%emt 0:00:14]} gxf6 {[%emt 0:03:21]} 28. h3 {[%emt 0:16:41]} Re8 {[%emt 0:01:56][%cal Oc5e3]} 29. Kh2 {[%emt 0:07:37]} Kh8 {[%emt 0:05:51][%cal Oc5e3]} 30. Qc2 {[%emt 0:01:37]} Qd5 {[%emt 0:00:02]} 31. Bc3 {[%emt 0:00:32]} Re6 {[%emt 0:01:23]} 32. Qf2 {[%emt 0:00:28] [#] Threatens to win with Qh4.} Qe4 {[%emt 0:00:25]} 33. Qh4 {[%emt 0:00:08] Threatening mate with Rg3.} Bxe3 {[%emt 0:01:17]} (33... Bf8 $18 34. Bxf6+ Bg7 35. Bxg7+ Kxg7) 34. Rg3 {[%emt 0:00:59]} Bd4 {[%emt 0:00:43]} 35. Qh6 {[%emt 0:00:05] Weighted Error Value: White=0.09 (flawless) /Black=0.51  Mistake:       	White=1     	Black=5      Inaccurate:     	White=1     	Black=3      OK:         	White=13    	Black=8      Best:        	White=1     	Black=1} 1-0

[Event "Reykjavik Open 2025"]
[Site "Reykjavik"]
[Date "2025.04.09"]
[Round "1.2"]
[White "Vroombout, Enrico"]
[Black "Ivic, Velimir"]
[Result "0-1"]
[Annotator "TA"]
[ECO "B92"]
[WhiteElo "2161"]
[BlackElo "2623"]
[PlyCount "68"]
[EventDate "2025.04.09"]
[EventType "swiss"]
[EventCountry "ISL"]
[SourceTitle "playchess.com"]
[Source "ChessBase"]
[SourceQuality "1"]
[TimeControl "40/5400+30:1800+30"]

{[%evp 22,68,-10,-34,-8,0,-14,-17,-14,-24,-21,-20,-29,-38,-37,-48,-36,-28,-29,-64,-74,-85,-90,-84,-70,-84,-27,-31,-22,-8,-23,-30,-41,-108,-116,-162,-155,-157,-145,-189,-187,-215,-203,-566,-519,-510,-169,-493,-496]} 1. e4 {[%emt 0:00:03]} c5 {[%emt 0:00:18]} 2. Nf3 {[%emt 0:00:04]} d6 {[%emt 0:00:24]} 3. d4 {[%emt 0:00:21]} cxd4 {[%emt 0:00:07]} 4. Nxd4 {[%emt 0:00:04]} Nf6 {[%emt 0:00:06]} 5. Nc3 {[%emt 0:00:10]} a6 {[%emt 0:00:07]} 6. Be2 {[%emt 0:01:02]} e5 {[%emt 0:00:40]} 7. Nb3 {[%emt 0:00:50]} Be7 {[%emt 0:00:22]} 8. O-O {[%emt 0:00:40]} O-O {[%emt 0:00:32]} 9. Be3 {[%emt 0:02:41]} Be6 {[%emt 0:01:30]} 10. f4 {[%emt 0:03:30]} exf4 {[%emt 0:02:20]} 11. Rxf4 {[%emt 0:00:27]} Nc6 {[%emt 0:01:16]} 12. Nd5 {[%emt 0:12:23]} Bxd5 {[%emt 0:02:51] B92: Sicilian Najdorf: 6 Be2.} 13. exd5 {[%emt 0:00:16]} Ne5 {[%emt 0:00:08]} 14. Rb4 {[%emt 0:07:44]} Qc7 {[%emt 0:04:38] The position is equal.} 15. a4 {[%emt 0:04:54]} Rfe8 {[%emt 0:02:44]} 16. a5 {[%emt 0:06:27]} Bf8 {[%emt 0:05:09]} 17. Bf2 $146 {[%emt 0:09:16]} (17. Bg5 Nfd7 18. c3 g6 19. Qd2 Bg7 20. Kh1 Rab8 21. Bh6 Bh8 22. Rh4 f5 23. Bg5 {0-1 Van der Togt,T (1880)-Van der Auweraert,E (2154) Leiden LCT op-A 7th 2013 (5)}) 17... g6 {[%emt 0:03:05]} 18. c3 {[%emt 0:08:46]} Bh6 {[%emt 0:02:42]} 19. Qd4 {[%emt 0:07:01]} Re7 {[%emt 0:10:51]} 20. Bh4 {[%emt 0:09:02]} Ned7 {[%emt 0:10:34]} 21. Qc4 {[%emt 0:02:48]} Qxc4 {[%emt 0:10:24]} 22. Bxc4 {[%emt 0:00:08][%cal Oa1f1]} Re4 $1 {[%emt 0:02:09]} 23. Bg3 {[%emt 0:06:19] [#]} Rc8 {[%emt 0:05:02]} (23... Ne5 $1 $17 {[%cal Re5c4]} 24. Bxe5 dxe5) 24. Nd4 $11 {[%emt 0:05:55]} Be3+ {[%emt 0:11:58]} 25. Kh1 {[%emt 0:04:32]} Ne5 {[%emt 0:01:08]} 26. Bf1 {[%emt 0:01:19]} Rc7 {[%emt 0:03:11]} 27. Rb6 {[%emt 0:02:20]} ({White should try} 27. Re1 $15) 27... Rd7 $17 {[%emt 0:01:46]} (27... Nxd5 $2 28. Rxd6 Nf4 29. Rd8+ Kg7 30. Re8 $18) 28. Re1 {[%emt 0:02:27]} (28. Bxe5 $17 Rxe5 29. g3) 28... Nxd5 $19 {[%emt 0:04:08][%csl Oe3] Strong Square Black (e3)} 29. Rb3 {[%emt 0:00:20]} Nf6 {[%emt 0:00:50]} 30. Nf3 {[%emt 0:01:32] [#]} Bc5 $1 {[%emt 0:01:08] Against Rb4} 31. Nxe5 {[%emt 0:01:58]} dxe5 {[%emt 0:04:36]} 32. Be2 $2 {[%emt 0:00:17]} ({Avoid the trap} 32. Rxe4 $2 Nxe4 33. Bxe5 Nd2 $19 (33... Rd1 $2 34. h4 $19)) (32. Rb1 {is tougher.}) 32... Rd2 {[%emt 0:02:07]} 33. Bf3 {[%emt 0:00:06]} Rxe1+ {[%emt 0:00:05]} 34. Bxe1 {[%emt 0:00:03] This pair of bishops is nice.} Rc2 {[%emt 0:00:11] Weighted Error Value: White=0.31/Black=0.08 (flawless)   Mistake:       	White=3     	Black=1      Inaccurate:     	White=3     	---        OK:         	White=9     	Black=16     Best:        	---       	Black=1      Strong:       	---       	Black=1} 0-1

[Event "Reykjavik Open 2025"]
[Site "Reykjavik"]
[Date "2025.04.09"]
[Round "1.3"]
[White "Lu, Shanglei"]
[Black "Birkisson, Bjorn Holm"]
[Result "1-0"]
[Annotator "TA"]
[ECO "C02"]
[WhiteElo "2618"]
[BlackElo "2154"]
[PlyCount "71"]
[EventDate "2025.04.09"]
[EventType "swiss"]
[EventCountry "ISL"]
[SourceTitle "playchess.com"]
[Source "ChessBase"]
[SourceQuality "1"]
[TimeControl "40/5400+30:1800+30"]

{[%evp 14,71,22,25,25,33,47,43,31,50,36,43,73,78,78,42,81,77,78,76,72,69,68,63,73,63,59,62,63,58,80,77,80,76,66,73,69,69,138,134,124,120,148,152,150,148,549,183,176,177,165,169,179,173,208,198,875,870,847,855]} 1. e4 {[%emt 0:00:06]} e6 {[%emt 0:00:05]} 2. d4 {[%emt 0:01:17]} d5 {[%emt 0:00:14]} 3. e5 {[%emt 0:00:07]} c5 {[%emt 0:00:23]} 4. c3 {[%emt 0:00:07]} Nc6 {[%emt 0:00:04]} 5. Nf3 {[%emt 0:00:07]} Bd7 {[%emt 0:00:05]} 6. Be2 {[%emt 0:01:21]} Nge7 {[%emt 0:00:27]} 7. O-O {[%emt 0:01:03]} Ng6 {[%emt 0:09:53]} 8. g3 {[%emt 0:03:02]} f6 {[%emt 0:28:26] is more profitable than 8...Be7 at the moment. C02: French: Advance Variation.} 9. exf6 {[%emt 0:18:44]} gxf6 {[%emt 0:00:46]} 10. c4 {[%emt 0:10:29]} dxc4 {[%emt 0:22:36] White is slightly better.} 11. Nc3 $146 {[%emt 0:10:10][%cal Bb1c3,Bc3b5,Bb5d6][%mdl 32]} (11. Be3 cxd4 12. Nxd4 Rc8 13. Nc3 Nxd4 14. Bxd4 Be7 15. Qd2 a6 16. Qh6 Qa5 17. Bf3 Bc6 18. Bg4 Rd8 19. Rad1 Rd6 20. Rfe1 Kf7 21. Bxf6 Bf8 22. Qe3 {1-0 Hohlbein,M-Faust,D CT King 19193 2015}) 11... cxd4 {[%emt 0:03:41]} 12. Nxd4 {[%emt 0:00:23]} Bg7 {[%emt 0:01:39]} 13. Ncb5 {[%emt 0:06:12] White is more active.} Nxd4 {[%emt 0:10:01]} 14. Nd6+ {[%emt 0:03:03]} (14. Nxd4 Qc8 $11) 14... Ke7 {[%emt 0:00:19]} 15. Qxd4 {[%emt 0:00:05][%cal Of1d1] [#] White attacks} Qb6 {[%emt 0:01:47]} 16. Qxb6 {[%emt 0:00:51]} axb6 {[%emt 0:00:05]} 17. Nxc4 {[%emt 0:00:04]} Bb5 $1 {[%emt 0:12:46]} 18. Bd2 {[%emt 0:02:16]} Bxc4 {[%emt 0:01:19]} 19. Bxc4 {[%emt 0:00:13]} Ne5 {[%emt 0:00:59]} 20. Be2 $36 {[%emt 0:03:51][%mdl 2048] White has some pressure. This pair of bishops is nice.} f5 {[%emt 0:01:34]} 21. Bc3 {[%emt 0:01:47] [#]} Kf7 {[%emt 0:00:26]} 22. Rfe1 {[%emt 0:03:29]} Bf6 {[%emt 0:01:54]} 23. Bxe5 {[%emt 0:07:16]} Bxe5 {[%emt 0:00:05]} 24. Bc4 {[%emt 0:00:03]} Kf6 {[%emt 0:00:57]} 25. Re2 {[%emt 0:00:20]} Rac8 {[%emt 0:01:37]} ({Black should try} 25... Ra4 $1 $14 26. Bb3 Re4 27. Rxe4 fxe4) 26. Bb3 $16 {[%emt 0:02:19]} Rhe8 {[%emt 0:00:29]} 27. Rae1 {[%emt 0:00:07]} Rc5 {[%emt 0:00:43]} 28. Kg2 {[%emt 0:01:37]} f4 {[%emt 0:00:36]} 29. gxf4 {[%emt 0:00:34]} Bd4 {[%emt 0:00:32][%mdl 8192] Loses the game.} (29... Bc7 $16 30. Rxe6+ Rxe6 31. Rxe6+ Kf5) 30. Rxe6+ $2 {[%emt 0:00:15]} (30. Rd2) 30... Rxe6 $18 {[%emt 0:00:05]} 31. Rxe6+ {[%emt 0:00:02] KRB-KRB. White is two pawns up.} ({Don't do} 31. Bxe6 $6 Rc2 $16) 31... Kf5 {[%emt 0:00:15]} 32. Rxb6 {[%emt 0:01:02]} Kxf4 {[%emt 0:00:14] Hoping for ...Rg5+.} 33. Rxb7 {[%emt 0:01:11]} Rg5+ {[%emt 0:00:22]} 34. Kf1 {[%emt 0:00:02] Hoping for Rb4.} Rh5 $2 {[%emt 0:01:12]} (34... Rc5 35. Rxh7 Bxb2 36. Rh4+ Kg5) 35. Rb4 {[%emt 0:00:24]} Ke4 {[%emt 0:00:39]} 36. Bc2+ {[%emt 0:00:07] Weighted Error Value: White=0.18 (very precise) /Black=0.60  Loses game:     	---       	Black=1      Mistake:       	White=1     	Black=2      Inaccurate:     	---       	Black=2      OK:         	White=15    	Black=11     Best:        	White=3     	Black=2      Strong:       	---       	Black=1} 1-0

[Event "Reykjavik Open 2025"]
[Site "Reykjavik"]
[Date "2025.04.09"]
[Round "1.4"]
[White "Villiers, Thomas"]
[Black "Safarli, Eltaj"]
[Result "0-1"]
[Annotator "TA"]
[ECO "C56"]
[WhiteElo "2154"]
[BlackElo "2617"]
[PlyCount "98"]
[EventDate "2025.04.09"]
[EventType "swiss"]
[EventCountry "ISL"]
[SourceTitle "playchess.com"]
[Source "ChessBase"]
[SourceQuality "1"]
[TimeControl "40/5400+30:1800+30"]

{[%evp 16,98,-14,-16,-16,-9,-11,-26,-14,-37,-45,-65,-66,-66,-58,-242,-149,-170,-109,-112,-116,-98,-92,-107,-97,-92,-92,-84,-91,-95,-89,-100,-108,-140,-82,-150,-138,-206,-174,-240,-225,-240,-240,-243,-239,-249,-229,-229,-188,-373,-362,-358,-353,-362,-365,-391,-390,-429,-423,-393,-332,-443,-339,-425,-423,-527,-529,-467,-408,-618,-610,-602,-584,-984,-977,-29977,-7130,-29981,-29982,-29984,-29985,-29985,-29986,-29986,-29987]} 1. e4 {[%emt 0:00:09]} e5 {[%emt 0:00:13]} 2. Nf3 {[%emt 0:00:13]} Nc6 {[%emt 0:00:06]} 3. Bc4 {[%emt 0:00:37]} Bc5 {[%emt 0:00:25]} 4. c3 {[%emt 0:00:26]} Nf6 {[%emt 0:00:17]} 5. d4 {[%emt 0:00:17]} exd4 {[%emt 0:00:20]} 6. O-O {[%emt 0:01:01]} Nxe4 {[%emt 0:01:43]} 7. cxd4 {[%emt 0:00:24]} d5 {[%emt 0:00:03]} 8. dxc5 {[%emt 0:00:14]} dxc4 {[%emt 0:00:04]} 9. Qe2 {[%emt 0:00:10][%csl LRc4,LRe4] 9.Qe2 scores better than 9.Qxd8+.} Qe7 {[%emt 0:01:22] C56: Two Knights: 4 d4 exd4 5 0-0 Nxe4.} 10. Qxc4 {[%emt 0:02:06]} Bf5 $5 {[%emt 0:01:02][%mdl 4] Leaves trodden paths.} 11. Re1 {[%emt 0:02:09]} Qe6 {[%emt 0:05:30] Black has an edge.} 12. Qa4 $146 {[%emt 0:04:23] A sharp opening} (12. Qd3 O-O 13. Nc3 Rfe8 14. Bf4 Nb4 15. Qe3 Nc2 16. Nd4 Nxe3 17. Nxe6 Rxe6 18. Rxe3 Nxc5 19. Nd5 Nd3 20. Rxd3 Bxd3 21. Nxc7 Re4 {½-½ Rulfs,E (2099)-Zeihen,P (2294) CFriend AR-2004-F-00004 email 2005 (1)}) 12... O-O-O {[%emt 0:00:58]} 13. Be3 {[%emt 0:03:06]} Qf6 {[%emt 0:08:33]} 14. Na3 {[%emt 0:08:56]} Rhe8 {[%emt 0:10:16][%cal Of5h3]} 15. b4 $2 {[%emt 0:09:12]} (15. Nc4 $15) 15... Nc3 {[%emt 0:05:34]} 16. Qb3 {[%emt 0:00:11] [#]} Ne2+ $1 {[%emt 0:03:39][%mdl 512]} 17. Kh1 $17 {[%emt 0:01:46][%cal Oe3g5] Threatens to win with Bg5!.} Rd3 {[%emt 0:01:57] Black has more active pieces.} 18. Qc4 {[%emt 0:01:12]} Rxa3 {[%emt 0:05:01]} 19. Qxe2 {[%emt 0:00:57]} Bg4 {[%emt 0:10:03][%cal Og4f3]} (19... Nxb4 20. Qb5 Rexe3 21. fxe3 $15) 20. b5 {[%emt 0:01:35] [#]} Bxf3 {[%emt 0:01:55]} 21. Qxf3 {[%emt 0:02:00]} Qxf3 {[%emt 0:00:27]} 22. gxf3 {[%emt 0:00:06]} Nd8 $36 {[%emt 0:03:35][%mdl 2048] Black has strong initiative.} 23. Red1 {[%emt 0:08:13]} c6 {[%emt 0:04:08]} 24. b6 {[%emt 0:03:29]} Ne6 {[%emt 0:00:54]} (24... axb6 $142 25. cxb6 Ne6) 25. Rd2 {[%emt 0:01:59]} ({Better is} 25. bxa7 Rxa7 26. Rg1) 25... Rd8 {[%emt 0:01:08]} 26. Rad1 {[%emt 0:08:56]} (26. bxa7 $17 Rxd2 (26... Rxa7 27. Rb2 $17) 27. Bxd2) 26... Rxa2 {[%emt 0:01:51]} 27. Rxa2 {[%emt 0:00:14]} (27. Rxd8+ {keeps fighting.} Nxd8 28. f4) 27... Rxd1+ $19 {[%emt 0:00:05][%mdl 4096] Endgame KRB-KRN. Black is a pawn up.} 28. Kg2 {[%emt 0:00:07]} a6 {[%emt 0:00:42]} 29. Ra4 {[%emt 0:01:28]} Rd5 {[%emt 0:00:29]} 30. Rc4 {[%emt 0:00:22]} g5 {[%emt 0:02:13]} 31. h4 {[%emt 0:00:10]} h6 {[%emt 0:01:06]} 32. hxg5 $2 {[%emt 0:00:08]} (32. f4) 32... hxg5 {[%emt 0:00:04]} 33. Rc1 {[%emt 0:00:48]} Kd7 {[%emt 0:01:35]} 34. Rh1 {[%emt 0:00:31]} Nxc5 {[%emt 0:00:27]} 35. Rh8 {[%emt 0:00:31]} Ne6 {[%emt 0:01:18]} 36. Rb8 {[%emt 0:00:17]} Nd8 {[%emt 0:00:06]} 37. f4 {[%emt 0:00:04]} g4 {[%emt 0:00:50]} 38. Bc1 {[%emt 0:00:31]} Rb5 {[%emt 0:03:04] Wards off Bb2} 39. Bd2 {[%emt 0:00:05]} c5 {[%emt 0:03:23][%cal Oc5c4]} (39... Rxb6 40. Ba5 Rb5 41. Rxd8+ (41. Bxd8 f5 $14) 41... Ke6 42. Bc7 $16) 40. Kg3 {[%emt 0:00:31]} Rxb6 {[%emt 0:02:45]} 41. Kxg4 {[%emt 0:30:11]} Rc6 {[%emt 0:31:09] and ...Rc8 should not be overlooked} 42. Ba5 {[%emt 0:00:24] [#]} (42. Kf3 $142) 42... Rc8 $1 {[%emt 0:00:18]} ({Less strong is} 42... Rg6+ 43. Kf5 Rg8 44. Ke4 $17) 43. Rxc8 {[%emt 0:00:41]} Kxc8 {[%emt 0:00:02] KB-KN. Black is two pawns up.} 44. Kf5 {[%emt 0:00:06]} b5 {[%emt 0:00:18]} 45. Kf6 {[%emt 0:00:08]} b4 {[%emt 0:00:31] ( -> ...Nb7)} 46. f5 {[%emt 0:00:05]} Nc6 {[%emt 0:01:22] Black mates.} 47. Kxf7 {[%emt 0:00:08]} Nxa5 {[%emt 0:00:31]} 48. f6 {[%emt 0:00:06]} Nc6 {[%emt 0:00:12]} 49. Kg7 {[%emt 0:00:06]} Nd8 {[%emt 0:00:15] Weighted Error Value: White=0.73/Black=0.13 (very precise)   Loses game:     	White=1     	---        Mistake:       	White=5     	Black=2      Inaccurate:     	White=2     	Black=1      OK:         	White=9     	Black=17     Best:        	White=3     	Black=2      Strong:       	---       	Black=1} 0-1

[Event "Reykjavik Open 2025"]
[Site "Reykjavik"]
[Date "2025.04.09"]
[Round "1.5"]
[White "Ivanchuk, Vasyl"]
[Black "Alrehaili, Ahmed Abdullah S"]
[Result "1-0"]
[Annotator "TA"]
[ECO "E62"]
[WhiteElo "2604"]
[BlackElo "2152"]
[PlyCount "57"]
[EventDate "2025.04.09"]
[EventType "swiss"]
[EventCountry "ISL"]
[SourceTitle "playchess.com"]
[Source "ChessBase"]
[SourceQuality "1"]
[TimeControl "40/5400+30:1800+30"]

{[%evp 17,57,46,52,43,97,78,106,105,218,197,200,193,195,198,207,199,204,192,215,208,245,214,208,204,208,198,197,197,194,193,192,185,227,222,336,341,489,474,639,651,618,591]} 1. d4 {[%emt 0:00:02]} Nf6 {[%emt 0:00:23]} 2. c4 {[%emt 0:00:05]} g6 {[%emt 0:00:24]} 3. g3 {[%emt 0:00:05]} Bg7 {[%emt 0:00:13]} 4. Bg2 {[%emt 0:00:04]} d6 {[%emt 0:00:37]} 5. Nc3 {[%emt 0:00:42]} O-O {[%emt 0:00:24]} 6. Nf3 {[%emt 0:00:03]} Nc6 {[%emt 0:00:19]} 7. O-O {[%emt 0:00:09]} Bg4 {[%emt 0:00:04]} 8. d5 {[%emt 0:19:05]} Na5 {[%emt 0:00:30]} 9. b3 {[%emt 0:00:17]} c5 {[%emt 0:02:47][%cal Of6e4]} 10. Bb2 {[%emt 0:01:40] E62: King's Indian: Fianchetto: 6...c6 and Panno Variation (6...Nc6) without ...a6.} e5 {[%emt 0:06:46] [#]} ({Black should try} 10... a6 $14) 11. dxe6 $1 $16 {[%emt 0:01:29]} fxe6 $146 {[%emt 0:01:47][%cal Bf7e6,Be6e5][%mdl 32]} (11... Bxe6 12. Qd2 Bxc4 13. Rad1 Ba6 14. Qxd6 Qxd6 15. Rxd6 Rfe8 16. Ne5 Rad8 17. Rxd8 Rxd8 {½-½ Mack,P-Bjarnason,S EU-ch U21 prel 1973 (5)}) 12. Qd2 {[%emt 0:14:35] White is better.} Qb6 {[%emt 0:11:10]} (12... Nc6 $16) 13. Nh4 {[%emt 0:18:35]} e5 {[%emt 0:08:10]} 14. f4 {[%emt 0:03:21] and fxe5 should not be overlooked} Nc6 {[%emt 0:16:29]} 15. h3 {[%emt 0:04:19]} (15. Qxd6 $2 Rfd8 16. Nd5 Rxd6 $17) 15... Bc8 {[%emt 0:03:18]} 16. f5 {[%emt 0:07:37]} ({Stronger than} 16. Qxd6 Rd8 17. Nd5 Rxd6 $11) 16... gxf5 {[%emt 0:03:46]} 17. Nxf5 {[%emt 0:03:25]} Bxf5 {[%emt 0:02:38]} 18. Rxf5 {[%emt 0:02:48]} Ne7 {[%emt 0:03:03]} 19. Rff1 {[%emt 0:05:30]} Rad8 {[%emt 0:02:21]} 20. Rad1 {[%emt 0:02:57]} a6 {[%emt 0:05:19]} 21. Kh2 {[%emt 0:04:07]} Qc7 {[%emt 0:08:26]} 22. Bc1 {[%emt 0:01:02]} Kh8 {[%emt 0:01:39]} 23. Qd3 {[%emt 0:00:18]} h6 {[%emt 0:07:06]} 24. Be3 {[%emt 0:02:24]} b5 {[%emt 0:02:45]} 25. Qd2 {[%emt 0:00:36]} Kh7 {[%emt 0:01:44]} (25... b4 $142) 26. Ne4 $18 {[%emt 0:00:55]} (26. cxb5 d5 27. Qc2+ (27. bxa6 d4 $18) 27... e4 $16) 26... Nfg8 {[%emt 0:02:32]} (26... Neg8 $142 27. Nxd6 b4 28. Qc2+ Kh8) 27. Rxf8 {[%emt 0:01:41] White is clearly winning.} ({Not} 27. Nxd6 Rxf1 28. Bxf1 Nf6 29. cxb5 e4 30. bxa6 Nf5 $18) 27... Bxf8 {[%emt 0:00:04] [#]} 28. Nxc5 $1 {[%emt 0:01:09][%mdl 512]} Qc8 {[%emt 0:01:48]} (28... Kh8 29. Ne6) 29. Bb7 {[%emt 0:01:21] Black did not feel at home in the position after the opening.   Weighted Error Value: White=0.05 (flawless) /Black=0.43  Mistake:       	---       	Black=4      Inaccurate:     	---       	Black=2      OK:         	White=11    	Black=2      Best:        	---       	Black=1      Strong:       	White=1     	---} 1-0